Workbook

Sheet 읍면동별 세대 및 인구
A1: 여수시 읍면동별 세대 및 인구
A2: 작성기준 : 2021. 3. 31. 현재 | J2: (단위 : 세대, 명)
A3: 구 분 | B3: 세대수1) | C3: 합 계 | F3: 한국인 | I3: 외국인
C4: 계 | D4: 남 | E4: 여 | F4: 계 | G4: 남 | H4: 여 | I4: 계 | J4: 남 | K4: 여
A5: 20년 12월말 | B5: 126,988 | C5: 284,874 | D5: 146,250 | E5: 138,624 | F5: 280,242 | G5: 142,995 | H5: 137,247 | I5: 4,632 | J5: 3,255 | K5: 1,377
A6: 21년 1월말 | B6: 127,424 | C6: 285,067 | D6: 146,314 | E6: 138,753 | F6: 280,497 | G6: 143,083 | H6: 137,414 | I6: 4,570 | J6: 3,231 | K6: 1,339
A7: 21년 2월말 | B7: 127,658 | C7: 284,756 | D7: 146,189 | E7: 138,567 | F7: 280,213 | G7: 142,979 | H7: 137,234 | I7: 4,543 | J7: 3,210 | K7: 1,333
A8: 21년 3월말 | B8: 127,815 | C8: =SUM(C9:C35) -> 284,384 | D8: 145,993 | E8: 138,391 | F8: 279,844 | G8: 142,785 | H8: 137,059 | I8: 4,540 | J8: 3,208 | K8: 1,332
A9: 돌산읍 | B9: 6,763 | C9: =SUM(D9:E9) -> 13,928 | D9: =SUM(G9+J9) -> 7,424 | E9: =SUM(H9+K9) -> 6,504 | F9: 13,181 | G9: 6,771 | H9: 6,410 | I9: =SUM(J9:K9) -> 747 | J9: 653 | K9: 94
A10: 소라면 | B10: 8,851 | C10: 20,544 | D10: =SUM(G10+J10) -> 10,449 | E10: =SUM(H10+K10) -> 10,095 | F10: 20,416 | G10: 10,403 | H10: 10,013 | I10: 128 | J10: 46 | K10: 82
A11: 율촌면 | B11: 3,325 | C11: 6,434 | D11: =SUM(G11+J11) -> 3,348 | E11: =SUM(H11+K11) -> 3,086 | F11: 6,315 | G11: 3,270 | H11: 3,045 | I11: 119 | J11: 78 | K11: 41
A12: 화양면 | B12: 3,624 | C12: 6,687 | D12: 3,505 | E12: =SUM(H12+K12) -> 3,182 | F12: 6,508 | G12: 3,363 | H12: 3,145 | I12: 179 | J12: 142 | K12: 37
A13: 남면 | B13: 1,688 | C13: 2,905 | D13: 1,521 | E13: 1,384 | F13: 2,798 | G13: 1,427 | H13: 1,371 | I13: 107 | J13: 94 | K13: 13
A14: 화정면 | B14: 1,290 | C14: 2,207 | D14: 1,117 | E14: 1,090 | F14: 2,148 | G14: 1,063 | H14: 1,085 | I14: 59 | J14: 54 | K14: 5
A15: 삼산면 | B15: 1,258 | C15: 2,125 | D15: 1,222 | E15: 903 | F15: 2,054 | G15: 1,156 | H15: 898 | I15: 71 | J15: 66 | K15: 5
A16: 동문동 | B16: 2,648 | C16: 4,843 | D16: 2,465 | E16: 2,378 | F16: 4,786 | G16: 2,430 | H16: 2,356 | I16: 57 | J16: 35 | K16: 22
A17: 한려동 | B17: 1,815 | C17: 3,218 | D17: 1,605 | E17: 1,613 | F17: 3,192 | G17: 1,592 | H17: 1,600 | I17: 26 | J17: 13 | K17: 13
A18: 중앙동 | B18: 2,361 | C18: 4,488 | D18: 2,255 | E18: 2,233 | F18: 4,391 | G18: 2,187 | H18: 2,204 | I18: 97 | J18: 68 | K18: 29
A19: 충무동 | B19: 2,259 | C19: 4,073 | D19: 2,110 | E19: 1,963 | F19: 4,031 | G19: 2,079 | H19: 1,952 | I19: 42 | J19: 31 | K19: 11
A20: 광림동 | B20: 3,288 | C20: 6,201 | D20: 3,204 | E20: 2,997 | F20: 6,148 | G20: 3,187 | H20: 2,961 | I20: 53 | J20: 17 | K20: 36
A21: 서강동 | B21: 1,947 | C21: 3,829 | D21: 1,889 | E21: 1,940 | F21: 3,807 | G21: 1,882 | H21: 1,925 | I21: 22 | J21: 7 | K21: 15
A22: 대교동 | B22: 3,107 | C22: 5,725 | D22: 3,009 | E22: 2,716 | F22: 5,453 | G22: 2,774 | H22: 2,679 | I22: 272 | J22: 235 | K22: 37
A23: 국동 | B23: 5,375 | C23: 11,909 | D23: 6,176 | E23: 5,733 | F23: 11,477 | G23: 5,794 | H23: 5,683 | I23: 432 | J23: 382 | K23: 50
A24: 월호동 | B24: 2,936 | C24: 7,206 | D24: 3,733 | E24: 3,473 | F24: 6,928 | G24: 3,478 | H24: 3,450 | I24: 278 | J24: 255 | K24: 23
A25: 여서동 | B25: 8,048 | C25: 19,063 | D25: 9,379 | E25: 9,684 | F25: 18,911 | G25: 9,317 | H25: 9,594 | I25: 152 | J25: 62 | K25: 90
A26: 문수동 | B26: 9,626 | C26: 21,915 | D26: 11,073 | E26: 10,842 | F26: 21,563 | G26: 10,858 | H26: 10,705 | I26: 352 | J26: 215 | K26: 137
A27: 미평동 | B27: 5,905 | C27: 12,024 | D27: 6,476 | E27: 5,548 | F27: 11,821 | G27: 6,342 | H27: 5,479 | I27: 203 | J27: 134 | K27: 69
A28: 둔덕동 | B28: 4,084 | C28: 10,458 | D28: 5,273 | E28: 5,185 | F28: 10,302 | G28: 5,210 | H28: 5,092 | I28: 156 | J28: 63 | K28: 93
A29: 만덕동 | B29: 4,491 | C29: 10,629 | D29: 5,362 | E29: 5,267 | F29: 10,512 | G29: 5,286 | H29: 5,226 | I29: 117 | J29: 76 | K29: 41
A30: 쌍봉동 | B30: 13,583 | C30: 32,806 | D30: 16,859 | E30: 15,947 | F30: 32,598 | G30: 16,760 | H30: 15,838 | I30: 208 | J30: 99 | K30: 109
A31: 시전동 | B31: 14,138 | C31: 37,567 | D31: 18,896 | E31: 18,671 | F31: 37,274 | G31: 18,708 | H31: 18,566 | I31: 293 | J31: 188 | K31: 105
A32: 여천동 | B32: 10,342 | C32: 21,610 | D32: 11,373 | E32: 10,237 | F32: 21,446 | G32: 11,318 | H32: 10,128 | I32: 164 | J32: 55 | K32: 109
A33: 주삼동 | B33: 3,115 | C33: 8,273 | D33: 4,235 | E33: 4,038 | F33: 8,204 | G33: 4,212 | H33: 3,992 | I33: 69 | J33: 23 | K33: 46
A34: 삼일동 | B34: 1,327 | C34: 2,547 | D34: 1,428 | E34: 1,119 | F34: 2,419 | G34: 1,313 | H34: 1,106 | I34: 128 | J34: 115 | K34: 13
A35: 묘도동 | B35: 621 | C35: 1,170 | D35: 607 | E35: 563 | F35: 1,161 | G35: 605 | H35: 556 | I35: 9 | J35: 2 | K35: 7
A36: 주 : 1) 세대수에는 외국인 세대 제외

Sheet 65세이상 인구(총괄)
A1: 65세이상 인구 현황(총괄)
A2: 작성기준 : 2021. 3. 31. 현재 | D2: (단위 : 명)
A3: 구 분 | B3: 계 | C3: 남 | D3: 여 | E3: 노령화 지수
A4: 2011년말 | B4: 37,830 | C4: 15,023 | D4: 22,807 | E4: 82.0
A5: 2012년말 | B5: 39,671 | C5: 15,929 | D5: 23,742 | E5: 89.4
A6: 2013년말 | B6: 41,369 | C6: 16,775 | D6: 24,594 | E6: 96.8
A7: 2014년말 | B7: 43,225 | C7: 17,752 | D7: 25,473 | E7: 105.4
A8: 2015년말 | B8: 44,997 | C8: 18,775 | D8: 26,222 | E8: 114.3
A9: 2016년말 | B9: 46,632 | C9: 19,720 | D9: 26,912 | E9: 121.8
A10: 2017년말 | B10: 48,569 | C10: 20,703 | D10: 27,866 | E10: 130.6
A11: 2018년말 | B11: 49,609 | C11: 21,259 | D11: 28,350 | E11: 139.0
A12: 2019년말 | B12: 51,995 | C12: 22,462 | D12: 29,533 | E12: 151.0
A13: 2020년말 | B13: 54,587 | C13: 23,781 | D13: 30,806 | E13: 163.5
A14: 2021년 1월말 | B14: 54,830 | C14: 23,905 | D14: 30,925 | E14: 164.7
A15: 2021년 2월말 | B15: 54,985 | C15: 23,979 | D15: 31,006 | E15: 165.9
A16: 2021년 3월말 | B16: 55,193 | C16: 24,096 | D16: 31,097 | E16: 167.1
A17: 자료 : 민원지적과
A18: 주 : 노령화 지수 = (65세이상인구 / 0~14세 인구) * 100
J27: `
